[Event "Titled Tuesday Blitz April 26 Late 2022"]
[White "Fier, Alexandr"]
[Black "Deac, Bogdan-Daniel"]
[WhiteFideId "2107139"]
[BlackFideId "1226380"]
[WhiteElo "2571"]
[BlackElo "2648"]
[Result "0-1"]
[Round "02"]
[TimeControl "180+1"]
[Date "2022.04.26"]
[WhiteClock "0:00:48"]
[BlackClock "0:00:17"]

1. d4 {[%clk 0:03:00]}  Nf6 {[%clk 0:02:59]} 2. Bg5 {[%clk 0:03:00]}  d5 {[%clk 0:02:59]} 3. Bxf6 {[%clk 0:02:59]}  gxf6 {[%clk 0:02:59]} 4. c4 {[%clk 0:03:00]}  dxc4 {[%clk 0:02:58]} 5. e3 {[%clk 0:03:00]}  Be6 {[%clk 0:02:44]} 6. Ne2 {[%clk 0:02:49]}  Bh6 {[%clk 0:02:11]} 7. Nbc3 {[%clk 0:02:46]}  c6 {[%clk 0:02:07]} 8. Ng3 {[%clk 0:02:35]}  Qa5 {[%clk 0:02:06]} 9. Be2 {[%clk 0:02:34]}  f5 {[%clk 0:01:59]} 10. O-O {[%clk 0:02:31]}  Nd7 {[%clk 0:01:59]} 11. Rc1 {[%clk 0:02:29]}  f4 {[%clk 0:01:54]} 12. exf4 {[%clk 0:02:24]}  Bxf4 {[%clk 0:01:55]} 13. Rc2 {[%clk 0:02:23]}  Nf6 {[%clk 0:01:50]} 14. Nge4 {[%clk 0:02:09]}  O-O-O {[%clk 0:01:42]} 15. Nxf6 {[%clk 0:02:02]}  exf6 {[%clk 0:01:43]} 16. Ne4 {[%clk 0:01:59]}  Bf5 {[%clk 0:01:21]} 17. Bf3 {[%clk 0:01:42]}  Qd5 {[%clk 0:01:13]} 18. Re2 {[%clk 0:01:26]}  Qxd4 {[%clk 0:01:11]} 19. Qa4 {[%clk 0:01:26]}  Rhe8 {[%clk 0:01:01]} 20. Rfe1 {[%clk 0:01:25]}  Kb8 {[%clk 0:00:51]} 21. g3 {[%clk 0:01:22]}  Bc7 {[%clk 0:00:46]} 22. Bg2 {[%clk 0:01:15]}  Bb6 {[%clk 0:00:42]} 23. Qc2 {[%clk 0:01:03]}  Bg4 {[%clk 0:00:34]} 24. Re3 {[%clk 0:00:58]}  Qe5 {[%clk 0:00:23]} 25. Nxf6 {[%clk 0:00:52]}  Bxe3 {[%clk 0:00:17]} 26. Nxg4 {[%clk 0:00:48]}  Bxf2+ {[%clk 0:00:17]} 0-1


[Site "https://www.chess.com"]

[Event "Titled Tuesday Blitz April 26 Late 2022"]
[White "Gledura, Benjamin"]
[Black "Zhurbinsky, David"]
[WhiteFideId "712779"]
[BlackFideId "2072904"]
[WhiteElo "2326"]
[BlackElo "2563"]
[Result "1-0"]
[Round "02"]
[TimeControl "180+1"]
[Date "2022.04.26"]
[WhiteClock "0:00:43"]
[BlackClock "0:00:10"]

1. d4 {[%clk 0:03:00]}  Nf6 {[%clk 0:03:00]} 2. Nf3 {[%clk 0:02:59]}  e6 {[%clk 0:03:00]} 3. g3 {[%clk 0:02:57]}  b6 {[%clk 0:02:58]} 4. Bg2 {[%clk 0:02:58]}  Bb7 {[%clk 0:02:58]} 5. O-O {[%clk 0:02:56]}  c5 {[%clk 0:02:58]} 6. c4 {[%clk 0:02:53]}  d5 {[%clk 0:02:55]} 7. cxd5 {[%clk 0:02:50]}  Bxd5 {[%clk 0:02:52]} 8. Nc3 {[%clk 0:02:49]}  Bb7 {[%clk 0:02:42]} 9. Bg5 {[%clk 0:02:48]}  Nbd7 {[%clk 0:02:29]} 10. Qa4 {[%clk 0:02:45]}  cxd4 {[%clk 0:02:22]} 11. Bxf6 {[%clk 0:02:29]}  Qxf6 {[%clk 0:02:10]} 12. Nxd4 {[%clk 0:02:28]}  Bxg2 {[%clk 0:02:08]} 13. Kxg2 {[%clk 0:02:29]}  Bc5 {[%clk 0:02:03]} 14. Rad1 {[%clk 0:02:25]}  O-O {[%clk 0:01:33]} 15. Nxe6 {[%clk 0:02:15]}  Qxe6 {[%clk 0:01:21]} 16. Qxd7 {[%clk 0:02:14]}  Qg6 {[%clk 0:01:16]} 17. Rd2 {[%clk 0:02:08]}  h5 {[%clk 0:01:12]} 18. h4 {[%clk 0:02:01]}  Rfe8 {[%clk 0:01:10]} 19. e3 {[%clk 0:01:56]}  Rac8 {[%clk 0:00:52]} 20. Qb7 {[%clk 0:01:51]}  Qg4 {[%clk 0:00:42]} 21. Qf3 {[%clk 0:01:35]}  Qe6 {[%clk 0:00:41]} 22. Nd5 {[%clk 0:01:31]}  Qg6 {[%clk 0:00:36]} 23. Nf4 {[%clk 0:01:26]}  Qh6 {[%clk 0:00:21]} 24. Qxh5 {[%clk 0:01:24]}  Qc6+ {[%clk 0:00:20]} 25. Qf3 {[%clk 0:01:23]}  Qa4 {[%clk 0:00:21]} 26. b3 {[%clk 0:01:23]}  Qb4 {[%clk 0:00:20]} 27. Rfd1 {[%clk 0:01:23]}  Qc3 {[%clk 0:00:17]} 28. Nd5 {[%clk 0:01:17]}  Qe5 {[%clk 0:00:17]} 29. Qf4 {[%clk 0:01:17]}  Qe6 {[%clk 0:00:15]} 30. h5 {[%clk 0:01:16]}  Red8 {[%clk 0:00:13]} 31. Nf6+ {[%clk 0:01:13]}  Qxf6 {[%clk 0:00:10]} 32. Rxd8+ {[%clk 0:01:13]}  Qxd8 {[%clk 0:00:08]} 33. Rxd8+ {[%clk 0:01:10]}  Rxd8 {[%clk 0:00:09]} 34. h6 {[%clk 0:01:09]}  gxh6 {[%clk 0:00:09]} 35. Qxh6 {[%clk 0:01:08]}  Rd6 {[%clk 0:00:09]} 36. Qg5+ {[%clk 0:01:08]}  Rg6 {[%clk 0:00:10]} 37. Qd8+ {[%clk 0:01:08]}  Kg7 {[%clk 0:00:10]} 38. Qc7 {[%clk 0:01:09]}  a5 {[%clk 0:00:10]} 39. a4 {[%clk 0:01:06]}  Bb4 {[%clk 0:00:09]} 40. Qe5+ {[%clk 0:01:03]}  Kg8 {[%clk 0:00:07]} 41. f4 {[%clk 0:01:03]}  Bc5 {[%clk 0:00:08]} 42. Kf3 {[%clk 0:01:02]}  Re6 {[%clk 0:00:08]} 43. Qg5+ {[%clk 0:01:00]}  Kf8 {[%clk 0:00:08]} 44. e4 {[%clk 0:01:01]}  Rd6 {[%clk 0:00:07]} 45. Qh5 {[%clk 0:00:54]}  Rd3+ {[%clk 0:00:07]} 46. Kg4 {[%clk 0:00:55]}  Rxb3 {[%clk 0:00:07]} 47. Qh8+ {[%clk 0:00:52]}  Ke7 {[%clk 0:00:07]} 48. Qe5+ {[%clk 0:00:53]}  Kf8 {[%clk 0:00:07]} 49. Qd5 {[%clk 0:00:48]}  Rb4 {[%clk 0:00:07]} 50. e5 {[%clk 0:00:48]}  Rxa4 {[%clk 0:00:06]} 51. Qd8+ {[%clk 0:00:48]}  Kg7 {[%clk 0:00:06]} 52. Qf6+ {[%clk 0:00:48]}  Kg8 {[%clk 0:00:06]} 53. Qd8+ {[%clk 0:00:42]}  Kh7 {[%clk 0:00:05]} 54. e6 {[%clk 0:00:42]}  Re4 {[%clk 0:00:02]} 55. exf7 {[%clk 0:00:41]}  Kg7 {[%clk 0:00:02]} 56. Qg8+ {[%clk 0:00:40]}  Kh6 {[%clk 0:00:02]} 57. f8=Q+ {[%clk 0:00:39]}  Bxf8 {[%clk 0:00:02]} 58. Qxf8+ {[%clk 0:00:40]}  Kg6 {[%clk 0:00:03]} 59. Qf5+ {[%clk 0:00:41]}  Kg7 {[%clk 0:00:04]} 60. Qxe4 {[%clk 0:00:42]}  a4 {[%clk 0:00:05]} 61. Qxa4 {[%clk 0:00:42]}  b5 {[%clk 0:00:06]} 62. Qxb5 {[%clk 0:00:42]}  Kg6 {[%clk 0:00:07]} 63. Qc6+ {[%clk 0:00:42]}  Kg7 {[%clk 0:00:08]} 64. Kf5 {[%clk 0:00:42]}  Kf7 {[%clk 0:00:08]} 65. Qd7+ {[%clk 0:00:43]}  Kf8 {[%clk 0:00:09]} 66. Kf6 {[%clk 0:00:43]}  Kg8 {[%clk 0:00:10]} 67. Qg7# {[%clk 0:00:43]} 1-0


[Site "https://www.chess.com"]

[Event "Titled Tuesday Blitz April 26 Late 2022"]
[White "Gnechko, Ruslan"]
[Black "Eggleston, Thomas A"]
[WhiteFideId "14135868"]
[BlackFideId "412139"]
[WhiteElo "2289"]
[BlackElo "2174"]
[Result "1-0"]
[Round "02"]
[TimeControl "180+1"]
[Date "2022.04.26"]
[WhiteClock "0:00:44"]
[BlackClock "0:00:13"]

1. d4 {[%clk 0:03:00]}  e6 {[%clk 0:02:59]} 2. c4 {[%clk 0:03:00]}  f5 {[%clk 0:02:59]} 3. Nc3 {[%clk 0:03:00]}  Nf6 {[%clk 0:02:59]} 4. Nf3 {[%clk 0:03:00]}  Bb4 {[%clk 0:03:00]} 5. Qc2 {[%clk 0:02:58]}  c5 {[%clk 0:03:00]} 6. dxc5 {[%clk 0:02:58]}  Na6 {[%clk 0:03:01]} 7. c6 {[%clk 0:02:57]}  bxc6 {[%clk 0:03:00]} 8. Bg5 {[%clk 0:02:57]}  O-O {[%clk 0:02:53]} 9. e3 {[%clk 0:02:57]}  Qa5 {[%clk 0:02:41]} 10. Bxf6 {[%clk 0:02:53]}  Rxf6 {[%clk 0:02:40]} 11. Bd3 {[%clk 0:02:48]}  Nc5 {[%clk 0:02:38]} 12. O-O {[%clk 0:02:48]}  Bxc3 {[%clk 0:02:34]} 13. bxc3 {[%clk 0:02:47]}  d6 {[%clk 0:02:26]} 14. e4 {[%clk 0:02:40]}  Nxd3 {[%clk 0:02:13]} 15. Qxd3 {[%clk 0:02:40]}  Qc5 {[%clk 0:02:12]} 16. Rfe1 {[%clk 0:02:37]}  e5 {[%clk 0:02:12]} 17. Nd2 {[%clk 0:02:17]}  Be6 {[%clk 0:01:58]} 18. Rab1 {[%clk 0:02:17]}  f4 {[%clk 0:01:32]} 19. Rb7 {[%clk 0:02:15]}  Bf7 {[%clk 0:01:29]} 20. Reb1 {[%clk 0:02:13]}  Rf8 {[%clk 0:01:25]} 21. Rb8 {[%clk 0:02:06]}  Be8 {[%clk 0:01:24]} 22. Rd8 {[%clk 0:01:59]}  Qa5 {[%clk 0:01:10]} 23. Rbb8 {[%clk 0:01:55]}  Re6 {[%clk 0:01:03]} 24. Qh3 {[%clk 0:01:13]}  Re7 {[%clk 0:00:39]} 25. Qh4 {[%clk 0:01:09]}  Qc7 {[%clk 0:00:37]} 26. Nf3 {[%clk 0:01:05]}  h6 {[%clk 0:00:36]} 27. h3 {[%clk 0:00:58]}  Ref7 {[%clk 0:00:26]} 28. Rxe8 {[%clk 0:00:55]}  Qa5 {[%clk 0:00:12]} 29. Rxf8+ {[%clk 0:00:54]}  Rxf8 {[%clk 0:00:13]} 30. Rb7 {[%clk 0:00:45]}  Qa6 {[%clk 0:00:13]} 31. Qe7 {[%clk 0:00:44]} 1-0


[Site "https://www.chess.com"]

[Event "Titled Tuesday Blitz April 26 Late 2022"]
[White "Godzwon, Iwo"]
[Black "Swiercz, Dariusz"]
[WhiteFideId "21802483"]
[BlackFideId "1126881"]
[WhiteElo "2201"]
[BlackElo "2627"]
[Result "0-1"]
[Round "02"]
[TimeControl "180+1"]
[Date "2022.04.26"]
[WhiteClock "0:00:06"]
[BlackClock "0:00:05"]

1. e4 {[%clk 0:02:59]}  c5 {[%clk 0:02:58]} 2. Nf3 {[%clk 0:02:59]}  Nc6 {[%clk 0:02:58]} 3. d4 {[%clk 0:02:59]}  cxd4 {[%clk 0:02:59]} 4. Nxd4 {[%clk 0:03:00]}  e5 {[%clk 0:02:59]} 5. Nb5 {[%clk 0:03:00]}  d6 {[%clk 0:03:00]} 6. c4 {[%clk 0:03:00]}  g6 {[%clk 0:02:59]} 7. N1c3 {[%clk 0:03:00]}  a6 {[%clk 0:03:00]} 8. Na3 {[%clk 0:03:00]}  Be6 {[%clk 0:03:00]} 9. Bd3 {[%clk 0:02:59]}  Rc8 {[%clk 0:03:01]} 10. Nc2 {[%clk 0:03:00]}  Bg7 {[%clk 0:03:01]} 11. O-O {[%clk 0:02:59]}  Nf6 {[%clk 0:02:58]} 12. Bg5 {[%clk 0:02:59]}  O-O {[%clk 0:02:56]} 13. Qd2 {[%clk 0:02:56]}  Qb6 {[%clk 0:02:51]} 14. b3 {[%clk 0:02:45]}  Nd7 {[%clk 0:02:51]} 15. Ne3 {[%clk 0:02:41]}  Qa5 {[%clk 0:02:46]} 16. Ned5 {[%clk 0:02:24]}  Bxd5 {[%clk 0:02:24]} 17. Nxd5 {[%clk 0:02:25]}  Qxd2 {[%clk 0:02:24]} 18. Bxd2 {[%clk 0:02:26]}  Nc5 {[%clk 0:02:24]} 19. Bc2 {[%clk 0:02:14]}  Rb8 {[%clk 0:02:15]} 20. Be3 {[%clk 0:02:09]}  Nd4 {[%clk 0:02:13]} 21. Bd1 {[%clk 0:02:02]}  Nxe4 {[%clk 0:02:11]} 22. Rc1 {[%clk 0:01:50]}  f5 {[%clk 0:02:03]} 23. Bxd4 {[%clk 0:01:47]}  exd4 {[%clk 0:02:04]} 24. Bc2 {[%clk 0:01:47]}  Rfe8 {[%clk 0:01:57]} 25. Rfe1 {[%clk 0:01:46]}  Nc3 {[%clk 0:01:46]} 26. Nxc3 {[%clk 0:01:33]}  dxc3 {[%clk 0:01:46]} 27. Kf1 {[%clk 0:01:33]}  Kf7 {[%clk 0:01:18]} 28. Rxe8 {[%clk 0:01:31]}  Rxe8 {[%clk 0:01:18]} 29. Re1 {[%clk 0:01:31]}  Be5 {[%clk 0:01:16]} 30. g3 {[%clk 0:01:30]}  Rc8 {[%clk 0:00:58]} 31. Ke2 {[%clk 0:01:24]}  Bd4 {[%clk 0:00:57]} 32. Kd3 {[%clk 0:01:21]}  Bxf2 {[%clk 0:00:54]} 33. Re2 {[%clk 0:01:21]}  Bc5 {[%clk 0:00:50]} 34. Kxc3 {[%clk 0:01:20]}  a5 {[%clk 0:00:51]} 35. Kd3 {[%clk 0:01:19]}  Kf6 {[%clk 0:00:50]} 36. Bd1 {[%clk 0:01:17]}  h5 {[%clk 0:00:49]} 37. Re1 {[%clk 0:01:17]}  Rh8 {[%clk 0:00:47]} 38. Bf3 {[%clk 0:01:02]}  b6 {[%clk 0:00:44]} 39. Re2 {[%clk 0:00:54]}  h4 {[%clk 0:00:42]} 40. g4 {[%clk 0:00:55]}  h3 {[%clk 0:00:43]} 41. gxf5 {[%clk 0:00:49]}  gxf5 {[%clk 0:00:44]} 42. Bd5 {[%clk 0:00:47]}  Kg5 {[%clk 0:00:40]} 43. Kd2 {[%clk 0:00:37]}  Rh4 {[%clk 0:00:37]} 44. Ke1 {[%clk 0:00:36]}  Rg4 {[%clk 0:00:34]} 45. Be6 {[%clk 0:00:31]}  Rg1+ {[%clk 0:00:29]} 46. Kd2 {[%clk 0:00:32]}  Kf4 {[%clk 0:00:25]} 47. Kd3 {[%clk 0:00:20]}  Rd1+ {[%clk 0:00:22]} 48. Kc2 {[%clk 0:00:18]}  Ra1 {[%clk 0:00:21]} 49. Kd3 {[%clk 0:00:18]}  Rd1+ {[%clk 0:00:20]} 50. Kc2 {[%clk 0:00:18]}  Rf1 {[%clk 0:00:21]} 51. Kd3 {[%clk 0:00:17]}  Rf3+ {[%clk 0:00:20]} 52. Kd2 {[%clk 0:00:16]}  Rf2 {[%clk 0:00:19]} 53. Ke1 {[%clk 0:00:07]}  Rxe2+ {[%clk 0:00:13]} 54. Kxe2 {[%clk 0:00:08]}  Bg1 {[%clk 0:00:13]} 55. Bd5 {[%clk 0:00:06]}  Bxh2 {[%clk 0:00:13]} 56. Kf2 {[%clk 0:00:06]}  Bg3+ {[%clk 0:00:14]} 57. Kf1 {[%clk 0:00:07]}  Bh4 {[%clk 0:00:11]} 58. Kg1 {[%clk 0:00:07]}  Kg3 {[%clk 0:00:10]} 59. Be6 {[%clk 0:00:06]}  f4 {[%clk 0:00:10]} 60. Bd5 {[%clk 0:00:06]}  f3 {[%clk 0:00:11]} 61. Kh1 {[%clk 0:00:04]}  Bf6 {[%clk 0:00:10]} 62. c5 {[%clk 0:00:04]}  bxc5 {[%clk 0:00:10]} 63. Bc4 {[%clk 0:00:05]}  Bd4 {[%clk 0:00:09]} 64. Bf1 {[%clk 0:00:05]}  h2 {[%clk 0:00:07]} 65. a3 {[%clk 0:00:06]}  Be5 {[%clk 0:00:06]} 66. a4 {[%clk 0:00:06]}  Kf2 {[%clk 0:00:06]} 67. Bd3 {[%clk 0:00:07]}  Ke1 {[%clk 0:00:06]} 68. b4 {[%clk 0:00:05]}  cxb4 {[%clk 0:00:05]} 69. Bf1 {[%clk 0:00:06]}  b3 {[%clk 0:00:05]} 70. Bd3 {[%clk 0:00:06]}  b2 {[%clk 0:00:06]} 71. Bb1 {[%clk 0:00:06]}  f2 {[%clk 0:00:06]} 72. Bd3 {[%clk 0:00:06]}  b1=Q {[%clk 0:00:05]} 0-1


[Site "https://www.chess.com"]

[Event "Titled Tuesday Blitz April 26 Late 2022"]
[White "Gutierrez Olivares, Daniel"]
[Black "Dahlgren, James Allen"]
[WhiteFideId "2264005"]
[BlackFideId "22256873"]
[WhiteElo "2317"]
[BlackElo "2095"]
[Result "1-0"]
[Round "02"]
[TimeControl "180+1"]
[Date "2022.04.26"]
[WhiteClock "0:00:24"]
[BlackClock "0:00:05"]

1. Nf3 {[%clk 0:03:00]}  e6 {[%clk 0:02:59]} 2. g3 {[%clk 0:03:00]}  c5 {[%clk 0:03:00]} 3. c4 {[%clk 0:03:00]}  d5 {[%clk 0:03:00]} 4. Bg2 {[%clk 0:03:01]}  Nf6 {[%clk 0:03:00]} 5. O-O {[%clk 0:03:01]}  Nc6 {[%clk 0:03:00]} 6. Nc3 {[%clk 0:02:53]}  Be7 {[%clk 0:02:57]} 7. b3 {[%clk 0:02:50]}  O-O {[%clk 0:02:57]} 8. Bb2 {[%clk 0:02:46]}  h6 {[%clk 0:02:57]} 9. e3 {[%clk 0:02:46]}  b6 {[%clk 0:02:56]} 10. Qe2 {[%clk 0:02:45]}  Bb7 {[%clk 0:02:56]} 11. Rfd1 {[%clk 0:02:43]}  Qc7 {[%clk 0:02:54]} 12. Rac1 {[%clk 0:02:37]}  Rad8 {[%clk 0:02:53]} 13. cxd5 {[%clk 0:02:29]}  exd5 {[%clk 0:02:54]} 14. d4 {[%clk 0:02:26]}  Rfe8 {[%clk 0:02:40]} 15. dxc5 {[%clk 0:02:24]}  bxc5 {[%clk 0:02:41]} 16. Na4 {[%clk 0:02:24]}  Qa5 {[%clk 0:02:35]} 17. Bxf6 {[%clk 0:02:17]}  Ba6 {[%clk 0:02:14]} 18. Qc2 {[%clk 0:02:01]}  Nb4 {[%clk 0:02:10]} 19. Qb1 {[%clk 0:01:55]}  gxf6 {[%clk 0:02:00]} 20. a3 {[%clk 0:01:52]}  Nc6 {[%clk 0:01:54]} 21. Nh4 {[%clk 0:01:53]}  Ne5 {[%clk 0:01:49]} 22. Nf5 {[%clk 0:01:45]}  Bf8 {[%clk 0:01:49]} 23. Rxd5 {[%clk 0:01:39]}  Rxd5 {[%clk 0:01:46]} 24. Bxd5 {[%clk 0:01:40]}  c4 {[%clk 0:01:43]} 25. Nc3 {[%clk 0:01:20]}  Bxa3 {[%clk 0:01:22]} 26. bxc4 {[%clk 0:01:11]}  Bxc1 {[%clk 0:01:20]} 27. Qxc1 {[%clk 0:01:12]}  Bxc4 {[%clk 0:01:11]} 28. Nxh6+ {[%clk 0:01:08]}  Kf8 {[%clk 0:01:09]} 29. e4 {[%clk 0:01:01]}  Bxd5 {[%clk 0:00:47]} 30. Nf5 {[%clk 0:00:59]}  Nf3+ {[%clk 0:00:38]} 31. Kg2 {[%clk 0:00:58]}  Ng5 {[%clk 0:00:35]} 32. Nxd5 {[%clk 0:00:56]}  Rxe4 {[%clk 0:00:26]} 33. Qc8+ {[%clk 0:00:39]}  Re8 {[%clk 0:00:26]} 34. Qc6 {[%clk 0:00:39]}  Qe1 {[%clk 0:00:22]} 35. Qd6+ {[%clk 0:00:35]}  Kg8 {[%clk 0:00:16]} 36. Nxf6+ {[%clk 0:00:34]}  Kh8 {[%clk 0:00:14]} 37. Qf4 {[%clk 0:00:30]}  Nh7 {[%clk 0:00:07]} 38. Qh6 {[%clk 0:00:26]}  Qe4+ {[%clk 0:00:04]} 39. Nxe4 {[%clk 0:00:25]}  Rxe4 {[%clk 0:00:05]} 40. Qg7# {[%clk 0:00:24]} 1-0


[Site "https://www.chess.com"]

[Event "Titled Tuesday Blitz April 26 Late 2022"]
[White "Guz, Ari"]
[Black "Aigner, Michael"]
[WhiteFideId "2825759"]
[BlackFideId "2017288"]
[WhiteElo "1913"]
[BlackElo "2392"]
[Result "0-1"]
[Round "02"]
[TimeControl "180+1"]
[Date "2022.04.26"]
[WhiteClock "0:00:16"]
[BlackClock "0:00:28"]

1. Nf3 {[%clk 0:03:00]}  d5 {[%clk 0:02:59]} 2. b3 {[%clk 0:03:01]}  c6 {[%clk 0:02:59]} 3. Bb2 {[%clk 0:03:01]}  Bg4 {[%clk 0:02:57]} 4. Ne5 {[%clk 0:03:01]}  Bh5 {[%clk 0:02:58]} 5. c4 {[%clk 0:02:57]}  e6 {[%clk 0:02:57]} 6. d4 {[%clk 0:02:54]}  Nd7 {[%clk 0:02:55]} 7. Nxd7 {[%clk 0:02:54]}  Qxd7 {[%clk 0:02:54]} 8. Qd2 {[%clk 0:02:51]}  Nf6 {[%clk 0:02:52]} 9. f3 {[%clk 0:02:49]}  Bg6 {[%clk 0:02:49]} 10. Nc3 {[%clk 0:02:47]}  Be7 {[%clk 0:02:46]} 11. e3 {[%clk 0:02:46]}  O-O {[%clk 0:02:44]} 12. Be2 {[%clk 0:02:44]}  Rfe8 {[%clk 0:02:42]} 13. O-O {[%clk 0:02:43]}  b6 {[%clk 0:02:42]} 14. Rad1 {[%clk 0:02:34]}  Rac8 {[%clk 0:02:40]} 15. Rfe1 {[%clk 0:02:33]}  Bd8 {[%clk 0:02:31]} 16. Kh1 {[%clk 0:02:28]}  Bc7 {[%clk 0:02:31]} 17. Bd3 {[%clk 0:02:21]}  Qd6 {[%clk 0:02:29]} 18. g3 {[%clk 0:02:20]}  Bxd3 {[%clk 0:02:19]} 19. Qxd3 {[%clk 0:02:20]}  Bb8 {[%clk 0:02:16]} 20. e4 {[%clk 0:02:07]}  dxe4 {[%clk 0:02:12]} 21. Nxe4 {[%clk 0:02:08]}  Nxe4 {[%clk 0:02:12]} 22. Rxe4 {[%clk 0:02:08]}  Rcd8 {[%clk 0:02:03]} 23. Qe2 {[%clk 0:02:08]}  Qd7 {[%clk 0:01:57]} 24. Kg2 {[%clk 0:02:00]}  c5 {[%clk 0:01:57]} 25. Re1 {[%clk 0:01:53]}  cxd4 {[%clk 0:01:56]} 26. Rxd4 {[%clk 0:01:52]}  Qc7 {[%clk 0:01:53]} 27. Red1 {[%clk 0:01:50]}  Rxd4 {[%clk 0:01:53]} 28. Rxd4 {[%clk 0:01:51]}  Rd8 {[%clk 0:01:52]} 29. Qd2 {[%clk 0:01:49]}  Rxd4 {[%clk 0:01:51]} 30. Qxd4 {[%clk 0:01:50]}  f6 {[%clk 0:01:49]} 31. Qe4 {[%clk 0:01:49]}  Qd7 {[%clk 0:01:45]} 32. Bc3 {[%clk 0:01:45]}  Bd6 {[%clk 0:01:36]} 33. h4 {[%clk 0:01:42]}  f5 {[%clk 0:01:30]} 34. Qd4 {[%clk 0:01:38]}  Qe7 {[%clk 0:01:29]} 35. Kh3 {[%clk 0:01:24]}  Bc5 {[%clk 0:01:26]} 36. Qd3 {[%clk 0:01:21]}  Qd6 {[%clk 0:01:23]} 37. Qe2 {[%clk 0:01:15]}  Kf7 {[%clk 0:01:21]} 38. Ba1 {[%clk 0:01:01]}  Bd4 {[%clk 0:01:16]} 39. Qd3 {[%clk 0:00:49]}  Be5 {[%clk 0:01:02]} 40. Qxd6 {[%clk 0:00:48]}  Bxd6 {[%clk 0:01:01]} 41. g4 {[%clk 0:00:49]}  g6 {[%clk 0:01:01]} 42. h5 {[%clk 0:00:46]}  e5 {[%clk 0:01:00]} 43. hxg6+ {[%clk 0:00:41]}  hxg6 {[%clk 0:00:58]} 44. Kg2 {[%clk 0:00:41]}  Ke6 {[%clk 0:00:58]} 45. Kf2 {[%clk 0:00:42]}  Bc5+ {[%clk 0:00:55]} 46. Ke2 {[%clk 0:00:42]}  a6 {[%clk 0:00:48]} 47. Bc3 {[%clk 0:00:40]}  b5 {[%clk 0:00:48]} 48. b4 {[%clk 0:00:37]}  Ba7 {[%clk 0:00:47]} 49. c5 {[%clk 0:00:36]}  Kd5 {[%clk 0:00:46]} 50. gxf5 {[%clk 0:00:32]}  gxf5 {[%clk 0:00:46]} 51. Kd3 {[%clk 0:00:32]}  Bb8 {[%clk 0:00:46]} 52. Bd2 {[%clk 0:00:29]}  Bc7 {[%clk 0:00:46]} 53. Kc3 {[%clk 0:00:21]}  e4 {[%clk 0:00:45]} 54. f4 {[%clk 0:00:20]}  Bd8 {[%clk 0:00:44]} 55. Be3 {[%clk 0:00:20]}  Bf6+ {[%clk 0:00:44]} 56. Kb3 {[%clk 0:00:21]}  Bd8 {[%clk 0:00:41]} 57. a4 {[%clk 0:00:21]}  Bc7 {[%clk 0:00:40]} 58. axb5 {[%clk 0:00:21]}  axb5 {[%clk 0:00:41]} 59. Kc3 {[%clk 0:00:21]}  Bd8 {[%clk 0:00:41]} 60. Kb3 {[%clk 0:00:22]}  Bh4 {[%clk 0:00:32]} 61. Kc3 {[%clk 0:00:22]}  Be1+ {[%clk 0:00:32]} 62. Kb3 {[%clk 0:00:22]}  Kc6 {[%clk 0:00:31]} 63. Bd4 {[%clk 0:00:21]}  Bd2 {[%clk 0:00:29]} 64. Be5 {[%clk 0:00:19]}  Kd5 {[%clk 0:00:29]} 65. Ka3 {[%clk 0:00:17]}  e3 {[%clk 0:00:29]} 66. c6 {[%clk 0:00:16]}  Kxc6 {[%clk 0:00:28]} 0-1


[Site "https://www.chess.com"]

[Event "Titled Tuesday Blitz April 26 Late 2022"]
[White "Hoffmann, Asa"]
[Black "Lehtosaari, Mauri"]
[WhiteFideId "2001470"]
[BlackFideId "501999"]
[WhiteElo "2117"]
[BlackElo "2531"]
[Result "1/2-1/2"]
[Round "02"]
[TimeControl "180+1"]
[Date "2022.04.26"]
[WhiteClock "0:00:18"]
[BlackClock "0:00:11"]

1. d4 {[%clk 0:02:58]}  d5 {[%clk 0:03:00]} 2. Bg5 {[%clk 0:02:54]}  h6 {[%clk 0:03:00]} 3. Bh4 {[%clk 0:02:53]}  c6 {[%clk 0:02:56]} 4. e3 {[%clk 0:02:53]}  Qb6 {[%clk 0:02:53]} 5. b3 {[%clk 0:02:52]}  Bf5 {[%clk 0:02:53]} 6. Bd3 {[%clk 0:02:51]}  Qa5+ {[%clk 0:02:50]} 7. c3 {[%clk 0:02:49]}  Bxd3 {[%clk 0:02:37]} 8. Qxd3 {[%clk 0:02:49]}  Nd7 {[%clk 0:02:37]} 9. Nf3 {[%clk 0:02:48]}  Ngf6 {[%clk 0:02:38]} 10. Nbd2 {[%clk 0:02:47]}  e6 {[%clk 0:02:38]} 11. O-O {[%clk 0:02:46]}  Bd6 {[%clk 0:02:27]} 12. b4 {[%clk 0:02:45]}  Qb5 {[%clk 0:02:20]} 13. Qc2 {[%clk 0:02:35]}  O-O {[%clk 0:02:19]} 14. a4 {[%clk 0:02:34]}  Qb6 {[%clk 0:02:18]} 15. a5 {[%clk 0:02:33]}  Qc7 {[%clk 0:02:18]} 16. e4 {[%clk 0:02:28]}  dxe4 {[%clk 0:02:13]} 17. Nxe4 {[%clk 0:02:27]}  Nxe4 {[%clk 0:02:13]} 18. Qxe4 {[%clk 0:02:27]}  Rae8 {[%clk 0:02:07]} 19. Rfe1 {[%clk 0:02:27]}  f5 {[%clk 0:02:03]} 20. Qc2 {[%clk 0:02:17]}  e5 {[%clk 0:01:51]} 21. dxe5 {[%clk 0:02:06]}  Nxe5 {[%clk 0:01:52]} 22. Nd4 {[%clk 0:01:56]}  Qf7 {[%clk 0:01:44]} 23. f3 {[%clk 0:01:50]}  a6 {[%clk 0:01:30]} 24. Rad1 {[%clk 0:01:49]}  Bb8 {[%clk 0:01:15]} 25. Bg3 {[%clk 0:01:38]}  f4 {[%clk 0:01:09]} 26. Bf2 {[%clk 0:01:38]}  Nc4 {[%clk 0:01:05]} 27. Qb3 {[%clk 0:01:26]}  Rxe1+ {[%clk 0:00:56]} 28. Rxe1 {[%clk 0:01:24]}  Qd5 {[%clk 0:00:56]} 29. Re4 {[%clk 0:01:19]}  Ba7 {[%clk 0:00:47]} 30. Qd1 {[%clk 0:00:56]}  c5 {[%clk 0:00:34]} 31. bxc5 {[%clk 0:00:54]}  Bxc5 {[%clk 0:00:35]} 32. Qe2 {[%clk 0:00:53]}  Nxa5 {[%clk 0:00:28]} 33. Ne6 {[%clk 0:00:44]}  Bxf2+ {[%clk 0:00:26]} 34. Kxf2 {[%clk 0:00:44]}  Re8 {[%clk 0:00:20]} 35. Nxf4 {[%clk 0:00:42]}  Qc5+ {[%clk 0:00:20]} 36. Kf1 {[%clk 0:00:36]}  Rxe4 {[%clk 0:00:19]} 37. Qxe4 {[%clk 0:00:34]}  Qc4+ {[%clk 0:00:19]} 38. Qxc4+ {[%clk 0:00:31]}  Nxc4 {[%clk 0:00:20]} 39. Ke2 {[%clk 0:00:31]}  Kf7 {[%clk 0:00:20]} 40. Kd3 {[%clk 0:00:31]}  Nd6 {[%clk 0:00:17]} 41. Kd4 {[%clk 0:00:30]}  Kf6 {[%clk 0:00:16]} 42. Kd5 {[%clk 0:00:29]}  Nf5 {[%clk 0:00:16]} 43. g4 {[%clk 0:00:27]}  Nh4 {[%clk 0:00:15]} 44. Ke4 {[%clk 0:00:26]}  Ke7 {[%clk 0:00:13]} 45. c4 {[%clk 0:00:26]}  Kd6 {[%clk 0:00:13]} 46. Nd3 {[%clk 0:00:25]}  b5 {[%clk 0:00:12]} 47. cxb5 {[%clk 0:00:24]}  axb5 {[%clk 0:00:13]} 48. f4 {[%clk 0:00:24]}  Ng6 {[%clk 0:00:12]} 49. f5 {[%clk 0:00:24]}  Ne7 {[%clk 0:00:12]} 50. h4 {[%clk 0:00:24]}  Nc8 {[%clk 0:00:10]} 51. g5 {[%clk 0:00:24]}  hxg5 {[%clk 0:00:11]} 52. hxg5 {[%clk 0:00:24]}  Ne7 {[%clk 0:00:12]} 53. Nb4 {[%clk 0:00:23]}  Ng8 {[%clk 0:00:11]} 54. Kd4 {[%clk 0:00:22]}  Ne7 {[%clk 0:00:11]} 55. Ke4 {[%clk 0:00:22]}  Ng8 {[%clk 0:00:10]} 56. Nd5 {[%clk 0:00:21]}  Ne7 {[%clk 0:00:08]} 57. Nxe7 {[%clk 0:00:20]}  Kxe7 {[%clk 0:00:09]} 58. Kd5 {[%clk 0:00:20]}  Kd7 {[%clk 0:00:08]} 59. Kc5 {[%clk 0:00:20]}  b4 {[%clk 0:00:09]} 60. Kxb4 {[%clk 0:00:20]}  Kd6 {[%clk 0:00:10]} 61. Kc4 {[%clk 0:00:20]}  Ke5 {[%clk 0:00:10]} 62. f6 {[%clk 0:00:20]}  gxf6 {[%clk 0:00:10]} 63. gxf6 {[%clk 0:00:18]}  Kxf6 {[%clk 0:00:11]} 1/2-1/2


[Site "https://www.chess.com"]